bitfinex-derivatives/quotes_ETHF0:USTF0_20241129
["timestamp","ask_amount","ask_price","bid_price","bid_amount"]
[1732903831091,0.4429,3588.6,3588.5,3.58887375]
[1732903831693,0.72135,3588.6,3588.5,3.58887375]
[1732903831894,0.4429,3588.6,3588.5,3.58887375]
[1732903832595,0.832,3588.7,3588.5,3.58887375]
[1732903832596,0.4183,3588.7,3588.5,3.58887375]
[1732903832797,0.4183,3588.7,3588.6,0.38107375]
[1732903833000,0.4183,3588.7,3588.5,3.2078]
[1732903833296,0.4183,3588.7,3587.9,0.27872776]
[1732903833297,0.2785,3588.0,3587.9,3.2078]
[1732903833999,0.2785,3588.0,3587.9,2.5325]
[1732903834189,0.27852,3587.6,3587.5,0.00775676]
[1732903834494,0.27852,3587.7,3587.6,0.27852]
[1732903834693,0.4252,3587.9,3587.5,0.00775676]
[1732903835088,0.27852,3587.7,3587.5,0.28628676]
[1732903835297,0.4252,3587.9,3587.5,0.00775676]
[1732903835691,0.4252,3587.9,3587.8,0.27851]
[1732903835893,0.4252,3587.9,3587.5,0.00775676]
[1732903835894,0.27852,3587.6,3587.5,0.00775676]
[1732903836099,0.27854,3587.4,3586.9,3.2078]
[1732903836295,0.4381,3587.5,3587.0,0.60582646]
[1732903836599,0.27855,3587.3,3587.1,0.88440853]
[1732903836895,3.6459,3587.5,3586.5,3.2078]
[1732903837097,0.27856,3587.2,3587.0,0.27857]
[1732903837293,0.27856,3587.2,3587.0,3.48637]
[1732903837492,0.4101,3587.4,3587.0,3.2078]
[1732903837697,0.27856,3587.1,3587.0,3.48637]
[1732903837895,0.4101,3587.4,3587.3,0.27855]
[1732903838797,0.4101,3587.4,3587.2,0.27855]
[1732903839099,0.68864,3587.4,3587.1,0.27856]
[1732903839396,0.68864,3587.4,3587.0,3.48637]
[1732903839397,0.4101,3587.4,3587.0,3.48637]
[1732903839901,0.27855,3587.3,3587.0,3.48637]
[1732903840102,0.27856,3587.2,3587.0,3.48637]
[1732903840398,0.27856,3587.1,3587.0,3.2078]
[1732903841295,1.10646,3587.4,3586.7,0.27859]
[1732903841496,0.27858,3586.9,3586.7,0.27859]
[1732903841697,0.4101,3587.4,3586.6,3.2078]
[1732903842004,0.4101,3587.4,3586.7,0.27859]
[1732903842304,0.27859,3586.8,3586.6,3.4864]
[1732903842698,0.4101,3587.4,3586.6,3.2078]
[1732903842893,0.27859,3586.7,3586.6,3.2078]
[1732903844798,0.27859,3586.8,3586.6,3.4864]
[1732903844997,0.4468,3587.1,3586.6,3.4864]
[1732903845197,0.27859,3586.8,3586.6,3.4864]
[1732903845503,0.27859,3586.7,3586.6,3.4864]
[1732903845703,0.27859,3586.8,3586.6,3.4864]
[1732903845907,0.27859,3586.7,3586.6,3.4864]
[1732903846298,0.27859,3586.7,3586.6,3.2078]
[1732903847009,2.994,3586.6,3585.2,10.28820342]
[1732903847300,11.5430406,3586.7,3585.6,3.2078]
[1732903847301,5.5340406,3586.4,3585.6,3.2078]
[1732903847504,5.5340406,3586.4,3585.7,0.4141]
[1732903847708,0.27864,3586.1,3585.7,0.4141]
[1732903847899,0.27864,3586.1,3585.8,0.8986]
[1732903848408,0.27865,3586.0,3585.8,0.8986]
[1732903848908,3.2078,3586.4,3585.8,0.8986]
[1732903849115,0.27865,3586.0,3585.8,0.8986]
[1732903849304,0.27862,3586.3,3585.8,0.8986]
[1732903849504,5.5340406,3586.4,3585.8,0.8986]
[1732903849709,0.27866,3585.9,3585.8,0.8986]
[1732903850008,0.27865,3586.0,3585.8,0.8986]
[1732903850311,0.27862,3586.3,3585.8,0.8986]
[1732903850500,0.27866,3585.9,3585.8,0.8986]
[1732903852015,5.5340406,3586.4,3585.8,0.8986]
[1732903852314,0.27863,3586.3,3585.9,0.27866]
[1732903852707,0.27864,3586.2,3585.8,1.17726]
[1732903853012,3.2078,3586.8,3586.1,0.27864]
[1732903853206,0.27862,3586.4,3586.1,0.27864]
[1732903853410,3.2078,3586.8,3586.5,0.27861]
[1732903853411,0.27859,3586.8,3586.5,0.27861]
[1732903853613,3.2078,3587.4,3586.6,1.303]
[1732903853912,3.2078,3587.4,3586.7,0.27859]
[1732903853913,0.27857,3587.0,3586.7,0.27859]
[1732903854117,0.27857,3587.0,3586.6,1.303]
[1732903854118,3.2078,3587.4,3586.6,1.303]
[1732903854416,0.69638,3587.3,3586.6,1.303]
[1732903854603,3.2078,3587.4,3586.6,1.303]
[1732903854810,0.27857,3587.0,3586.7,0.27859]
[1732903855312,3.2078,3587.4,3586.6,1.303]
[1732903855514,0.27856,3587.2,3586.9,0.27857]
[1732903855709,3.2078,3587.4,3586.6,1.303]
[1732903856010,0.27856,3587.2,3587.0,0.27857]
[1732903856309,2.3262406,3587.6,3587.0,3.48637]
[1732903856502,0.27855,3587.3,3587.0,3.48637]
[1732903856708,3.2078,3587.9,3587.0,3.48637]
[1732903856709,3.2078,3587.9,3587.0,4.2158]
[1732903856917,2.3262406,3588.0,3587.4,3.2078]
[1732903856918,0.27852,3587.7,3587.4,3.2078]
[1732903857206,0.27852,3587.7,3587.5,1.2996]
[1732903857412,2.3262406,3588.0,3587.5,1.2996]
[1732903857606,0.27852,3587.6,3587.5,1.2996]
[1732903858220,2.3262406,3588.0,3587.5,1.2996]
[1732903858411,0.27852,3587.7,3587.5,1.2996]
[1732903858607,0.27851,3587.8,3587.5,1.57813]
[1732903858915,0.27852,3587.7,3587.5,1.2996]
[1732903859215,0.27852,3587.6,3587.5,1.2996]
[1732903859405,0.69621,3588.2,3587.5,1.2996]
[1732903859609,0.27852,3587.7,3587.5,1.57813]
[1732903859815,0.27851,3587.8,3587.5,1.57813]
[1732903860518,3.2078,3588.3,3587.5,1.2996]
[1732903860713,0.6962,3588.2,3587.5,1.2996]
[1732903861017,0.27852,3587.6,3587.5,0.8714]
[1732903861609,0.27852,3587.6,3587.5,0.4306]
[1732903861814,3.2078,3587.9,3587.4,3.2078]
[1732903862010,0.27855,3587.3,3587.1,0.861]
[1732903862208,0.27854,3587.5,3587.2,3.48635]
[1732903862514,0.27854,3587.4,3587.2,3.48635]
[1732903862709,0.27854,3587.5,3587.2,3.48635]
[1732903863119,0.27851,3587.8,3587.5,0.27852]
[1732903863316,6.54226453,3587.8,3587.2,8.2078]
[1732903863506,9.75006453,3587.9,3587.8,0.27851]
[1732903863710,6.54226453,3587.9,3587.8,0.27851]
[1732903863920,6.54226453,3588.1,3587.9,0.2785]
[1732903864219,0.27849,3588.1,3588.0,0.4186]
[1732903864609,6.54226453,3588.3,3588.0,0.4186]
[1732903865013,6.82073453,3588.3,3588.1,0.27848]
[1732903865215,6.54226453,3588.4,3588.0,0.4186]
[1732903865719,16.07099907,3589.1,3588.4,0.69616]
[1732903865929,3.2078,3590.6,3588.7,3.2078]
[1732903866212,3.2078,3589.8,3588.7,3.2078]
[1732903866414,3.2078,3589.8,3588.3,0.278713]
[1732903866415,3.2078,3589.4,3588.3,0.278713]
[1732903866616,0.27843,3588.9,3588.3,0.278713]
[1732903866814,0.4259,3588.8,3588.1,3.2078]
[1732903867030,0.4259,3588.8,3587.6,5.5340406]
[1732903867319,0.27848,3588.2,3587.6,5.5340406]
[1732903867817,0.27846,3588.5,3588.0,3.2078]
[1732903868914,0.27845,3588.6,3588.0,3.2078]
[1732903869112,1.13335,3588.7,3588.0,3.2078]
[1732903869313,0.27845,3588.6,3588.0,3.2078]
[1732903869517,3.2078,3588.6,3588.0,3.2078]
[1732903869827,3.2078,3588.6,3587.5,0.278713]
[1732903870123,0.27849,3588.1,3587.5,2.6049536]
[1732903870417,0.8627,3588.0,3587.5,0.278713]
[1732903870814,3.2078,3588.6,3587.9,3.2078]
[1732903871015,3.6459,3588.6,3587.9,3.2078]
[1732903871218,0.27847,3588.4,3587.9,3.2078]
[1732903871624,0.27847,3588.3,3587.9,3.2078]
[1732903871921,0.27847,3588.4,3587.9,3.2078]
[1732903872321,0.27849,3588.0,3587.9,3.2078]
[1732903872631,0.27848,3588.2,3587.9,3.2078]
[1732903872922,0.4138,3588.5,3587.9,3.2078]
[1732903872923,0.27849,3588.1,3587.9,3.2078]
[1732903874424,0.27849,3588.1,3587.5,0.278713]
[1732903874425,0.27852,3587.7,3587.5,3.765043]
[1732903874632,1.14842,3587.6,3587.5,3.2078]
[1732903874817,0.8699,3587.6,3587.1,3.2078]
[1732903875123,0.8699,3587.6,3587.1,3.48636]
[1732903875334,0.8699,3587.6,3587.1,3.2078]
[1732903875623,0.27858,3587.0,3586.6,3.2078]
[1732903875822,0.4352,3586.9,3586.7,0.27859]
[1732903876220,0.8699,3586.9,3586.8,0.27859]
[1732903876421,6.2018,3587.8,3586.7,2.3262406]
[1732903876621,6.2018,3587.8,3587.4,0.27854]
[1732903876622,0.4356,3587.5,3587.4,0.27854]
[1732903877723,0.4356,3587.5,3587.4,3.2078]
[1732903878027,0.4353,3587.7,3587.4,3.2078]
[1732903878420,0.4353,3587.7,3587.6,0.27852]
[1732903878924,0.4353,3587.7,3587.5,0.27853]
[1732903879124,0.4353,3587.7,3587.4,3.48634]
[1732903879325,0.4353,3587.7,3587.4,3.2078]
[1732903879626,0.4353,3587.7,3587.5,0.27853]
[1732903880128,0.4353,3587.7,3587.6,0.27852]
[1732903880321,0.4356,3588.1,3587.6,2.3262406]
[1732903880628,0.4356,3588.1,3587.5,0.4487]
[1732903880823,0.2785,3587.9,3587.6,0.27852]
[1732903881225,0.27851,3587.8,3587.5,0.72723]
[1732903881433,0.27852,3587.6,3587.4,3.48634]
[1732903881735,0.68492,3587.7,3587.5,0.27853]
[1732903881923,0.68492,3587.7,3587.4,3.48634]
[1732903882122,0.68492,3587.7,3587.5,0.27853]
[1732903882123,0.4064,3587.7,3587.5,0.27853]
[1732903882816,0.4064,3587.7,3587.5,0.27852]
[1732903883229,0.27853,3587.5,3587.4,3.2078]
[1732903883424,0.4128,3587.6,3587.0,3.2078]
[1732903883626,0.4145,3587.4,3587.0,3.2078]
[1732903883824,0.27856,3587.1,3587.0,3.2078]
[1732903885436,0.27856,3587.2,3587.0,3.48637]
[1732903885625,0.27856,3587.2,3587.0,3.2078]
[1732903885825,0.27856,3587.1,3587.0,3.2078]
[1732903886149,0.27856,3587.2,3587.0,3.48637]
[1732903886330,0.4145,3587.4,3587.0,3.2078]
[1732903886529,0.27856,3587.1,3587.0,3.2078]
[1732903889433,0.27856,3587.2,3587.0,3.2078]
[1732903889633,0.4145,3587.4,3587.0,3.2078]
[1732903889937,0.27856,3587.1,3587.0,3.2078]
[1732903890133,1.1027,3587.7,3587.0,3.2078]
[1732903890134,0.4064,3587.7,3587.0,3.2078]
[1732903890437,2.994,3588.5,3587.5,3.2078]
[1732903890438,0.4423,3588.0,3587.5,3.2078]
[1732903890634,0.8566,3588.0,3587.5,3.2078]
[1732903890834,0.8566,3588.0,3587.5,3.48633]
[1732903891135,0.27852,3587.7,3587.5,3.48633]
[1732903891437,0.27852,3587.6,3587.5,3.2078]
[1732903891637,0.27852,3587.6,3587.5,3.48633]
[1732903891832,0.27852,3587.6,3587.5,3.2078]
[1732903893139,0.9745,3588.9,3587.8,0.2785]
[1732903893338,0.4492,3588.6,3588.1,3.2078]
[1732903893538,0.27848,3588.2,3588.1,3.2078]
[1732903894036,0.27847,3588.3,3588.1,3.48628]
[1732903894233,0.27848,3588.2,3588.1,3.2078]
[1732903894635,0.27848,3588.2,3588.1,3.48628]
[1732903895044,0.27848,3588.2,3588.1,3.2078]
[1732903900937,0.2785,3587.9,3587.8,0.2785]
[1732903902942,9.80862109,3588.3,3587.7,5.5340406]
[1732903903236,0.27847,3588.3,3588.2,0.27848]
[1732903903540,9.80862109,3588.5,3588.1,3.2078]
[1732903903741,0.27848,3588.2,3588.1,3.48628]
[1732903904136,9.80862109,3588.5,3588.1,3.2078]
[1732903904333,0.27847,3588.3,3588.2,0.27847]
[1732903904645,0.27848,3588.2,3588.1,3.91988]
[1732903904830,0.27848,3588.2,3588.1,3.6414]
[1732903905035,0.27848,3588.2,3588.1,3.2078]
[1732903905236,0.27848,3588.2,3587.5,3.2078]
[1732903905237,0.27852,3587.6,3587.5,3.2078]
[1732903905438,0.27854,3587.4,3587.3,0.27854]
[1732903905738,0.27855,3587.3,3587.2,1.12175]
[1732903905937,0.27855,3587.3,3587.2,0.68815]
[1732903906342,0.27855,3587.3,3587.2,0.4096]
[1732903906540,0.44,3587.6,3587.2,0.4096]
[1732903906934,0.27855,3587.3,3587.2,0.68815]
[1732903907733,0.27855,3587.3,3587.2,0.4096]
[1732903909937,0.27856,3587.1,3587.0,3.48657438]
[1732903910738,0.27856,3587.1,3587.0,3.76514438]
[1732903911746,0.27856,3587.1,3587.0,3.48657438]
[1732903912245,0.27856,3587.1,3587.0,3.76514438]
[1732903912445,0.27856,3587.1,3587.0,3.48657438]
[1732903912845,0.27856,3587.1,3587.0,3.76514438]
[1732903913068,0.27856,3587.1,3587.0,3.48657438]
[1732903913747,0.27856,3587.1,3587.0,3.76514438]
[1732903914144,0.27856,3587.2,3587.1,0.27856]
[1732903914449,0.4358,3587.5,3587.0,3.48657438]
[1732903914643,0.71434,3587.5,3587.4,3.48634]
[1732903914946,0.27854,3587.5,3587.4,3.48634]
[1732903915351,0.27853,3587.6,3587.5,0.27853]
[1732903915649,0.27853,3587.6,3587.5,0.422]
[1732903916650,0.27853,3587.5,3587.4,3.2078]
[1732903920644,0.27853,3587.5,3587.4,3.48634]
[1732903920843,0.27853,3587.5,3587.4,3.2078]
[1732903922153,0.27853,3587.5,3587.1,0.435]
[1732903922154,0.8624,3587.8,3587.1,0.435]
[1732903922358,0.27855,3587.2,3587.1,0.435]
[1732903922751,0.69635,3587.5,3587.0,0.27877438]
[1732903922952,7.0642,3587.8,3586.5,3.6216]
[1732903923254,0.2786,3586.6,3586.5,4.6346]
[1732903923446,0.2786,3586.6,3586.5,3.2078]
[1732903926950,0.2786,3586.7,3586.5,3.2078]
[1732903927255,0.2786,3586.6,3586.5,3.4864]
[1732903927454,0.2786,3586.6,3586.5,3.2078]
[1732903927862,0.2786,3586.6,3586.5,3.48641]
[1732903928350,0.2786,3586.6,3586.5,3.2078]
[1732903930658,0.2786,3586.6,3586.0,1.2475]
[1732903930659,0.27864,3586.1,3586.0,0.8121]
[1732903930862,0.27865,3586.0,3585.9,0.04748]
[1732903935273,0.27865,3586.0,3585.9,0.32614]
[1732903935867,0.27865,3586.0,3585.9,0.04748]
[1732903936062,0.27865,3586.0,3585.9,0.48558]
[1732903937574,0.27865,3586.0,3585.9,0.76424]
[1732903937772,0.27865,3586.0,3585.9,1.16376]
[1732903937963,0.27865,3586.0,3585.9,0.8851]
[1732903938568,0.27865,3586.0,3585.9,1.16376]
[1732903938874,0.27865,3586.0,3585.9,0.8851]
[1732903939675,0.4386,3586.6,3585.9,0.8851]
[1732903939869,0.4386,3586.6,3586.3,3.2078]
[1732903940070,0.27861,3586.5,3586.4,0.437]
[1732903941367,9.80862109,3587.7,3586.4,1.445]
[1732903941568,0.8629,3587.6,3586.9,3.2078]
[1732903941779,0.27854,3587.4,3587.3,3.2078]
[1732903944376,0.8629,3587.6,3587.2,0.27855]
[1732903944669,0.27854,3587.5,3587.4,0.27853]
[1732903945065,0.27854,3587.5,3587.3,0.27854]
[1732903945066,0.27853,3587.5,3587.3,0.27854]
[1732903945265,0.27853,3587.5,3587.4,0.27854]
[1732903945869,0.27853,3587.6,3587.5,0.27853]
[1732903946068,0.27852,3587.7,3587.5,0.27853]
[1732903946269,0.27851,3587.8,3587.7,0.27852]
[1732903946476,0.27851,3587.8,3587.4,3.2078]
[1732903946477,0.27851,3587.8,3587.6,0.27852]
[1732903946673,0.8833,3588.0,3587.6,0.27852]
[1732903946674,0.27852,3587.7,3587.6,0.27852]
[1732903946978,0.8833,3588.0,3587.5,0.4377]
[1732903947175,0.27849,3588.1,3587.9,0.2785]
[1732903947374,0.27848,3588.1,3588.0,0.4069]
[1732903948175,1.58695,3588.5,3587.8,3.2078]
[1732903948176,0.2785,3588.0,3587.8,3.4863]
[1732903948380,0.2785,3588.0,3587.9,0.2785]
[1732903948583,0.2785,3587.9,3587.8,3.2078]
[1732903948771,1.58695,3588.5,3587.8,3.2078]
[1732903948972,1.58695,3588.5,3587.8,3.4863]
[1732903949172,0.2785,3587.9,3587.8,3.4863]
[1732903949679,0.2785,3587.9,3587.8,3.2078]
[1732903950176,0.2785,3587.9,3587.8,3.48631]
[1732903950577,0.2785,3587.9,3587.8,3.2078]
[1732903952480,0.2785,3587.9,3587.8,3.48631]
[1732903953383,0.2785,3587.9,3587.8,3.2078]
[1732903955575,0.2785,3587.9,3587.8,3.48631]
[1732903956875,0.2785,3587.9,3587.8,3.2078]
[1732903957079,0.2785,3587.9,3587.8,3.48631]
[1732903959974,0.69619,3588.3,3587.8,3.2078]
[1732903960179,0.2785,3588.0,3587.9,0.27849]
[1732903960681,1.58695,3588.5,3588.0,0.27848]
[1732903960982,0.8908,3588.5,3587.9,0.69626]
[1732903961180,0.8908,3588.5,3588.4,0.27846]
[1732903961379,10.69942109,3588.5,3588.4,0.27846]
[1732903961581,10.08707109,3588.6,3588.5,0.27845]
[1732903961780,9.80862109,3588.7,3588.3,3.2078]
[1732903962084,10.91856109,3588.8,3588.7,0.27844]
[1732903962477,0.8315,3588.8,3588.7,0.27844]
[1732903962779,0.8315,3588.8,3588.7,3.48624]
[1732903962976,9.80862109,3588.9,3588.8,0.27843]
[1732903963177,9.80862109,3588.9,3588.7,3.2078]
[1732903963178,0.27842,3589.0,3588.9,0.27842]
[1732903963374,9.80862109,3589.1,3589.0,0.27842]
[1732903963590,0.4063,3589.2,3589.0,0.27842]
[1732903963795,0.27842,3588.9,3588.8,0.27843]
[1732903963991,0.27842,3589.0,3588.9,0.27842]
[1732903965182,0.4063,3589.2,3588.7,3.2078]
[1732903965388,0.4063,3589.2,3589.1,3.48621]
[1732903966179,0.4085,3589.3,3589.2,0.2784]
[1732903966384,0.27838,3589.6,3589.5,0.27838]
[1732903966580,0.27837,3589.6,3589.4,0.27838]
[1732903966780,0.27838,3589.5,3589.4,0.27838]
[1732903967181,0.8429,3589.7,3589.2,0.4486]
[1732903967381,0.27839,3589.4,3589.3,0.27839]
[1732903967782,0.8429,3589.7,3589.2,0.4486]
[1732903967983,0.27838,3589.4,3589.3,0.27839]
[1732903968179,0.27837,3589.6,3589.3,0.27839]
[1732903968387,0.27838,3589.5,3589.4,0.27838]
[1732903968780,0.8429,3589.7,3589.2,0.4486]
[1732903968980,0.8429,3589.7,3589.4,0.27838]
[1732903968981,0.27838,3589.5,3589.4,0.27838]
[1732903969174,0.8429,3589.7,3589.5,0.27837]
[1732903969175,0.27837,3589.6,3589.5,0.27837]
[1732903969386,1.12127,3589.7,3589.6,0.27837]
[1732903969586,0.27837,3589.6,3589.5,0.27837]
[1732903970185,1.12126,3589.7,3589.6,0.27837]
[1732903970386,1.12613,3590.2,3589.5,3.2078]
[1732903970580,0.27829,3590.6,3589.9,3.2078]
[1732903970783,2.79045859,3590.9,3590.3,3.2078]
[1732903970784,0.8311,3590.8,3590.3,3.2078]
[1732903971285,0.8311,3590.8,3590.6,0.27829]
[1732903971286,1.10938,3590.8,3590.6,0.27829]
[1732903971684,0.27829,3590.7,3590.5,0.27829]
[1732903971887,0.27829,3590.7,3590.4,2.7410406]
[1732903971888,0.8311,3590.8,3590.4,2.7410406]
[1732903972189,0.27829,3590.7,3590.5,0.27829]
[1732903972692,0.8311,3590.8,3590.4,2.7410406]
[1732903972882,0.27829,3590.7,3590.4,3.0193406]
[1732903973082,0.27828,3590.7,3590.4,3.0193406]
[1732903973382,0.27828,3590.7,3590.5,0.2783]
[1732903973589,0.8311,3590.8,3590.5,0.2783]
[1732903973786,0.27829,3590.6,3590.4,2.7410406]
[1732903974089,0.2783,3590.5,3590.4,2.7410406]
[1732903975492,0.2783,3590.5,3590.4,0.4148]
[1732903975687,0.27831,3590.4,3590.3,3.2078]
[1732903975893,0.69572,3590.7,3590.1,0.27832]
[1732903976095,0.27833,3590.2,3590.1,0.27832]
[1732903977798,0.8311,3590.8,3590.0,2.7337406]
[1732903978090,0.2783,3590.6,3590.5,0.2783]
[1732903978296,0.8311,3590.8,3590.4,5.5340406]
[1732903978593,0.69573,3590.7,3590.0,6.22002464]
[1732903978795,4.0389,3590.8,3590.2,0.27832]
[1732903978796,0.27832,3590.3,3590.2,0.27832]
[1732903979293,1.5268,3590.8,3590.0,6.22002464]
[1732903979499,0.27833,3590.2,3590.1,0.27833]
[1732903980192,1.5268,3590.8,3590.0,6.22002464]
[1732903980397,0.27833,3590.1,3590.0,4.17212404]
[1732903980895,0.27833,3590.1,3590.0,3.89378404]
[1732903981096,0.27833,3590.1,3590.0,4.17212404]
[1732903981288,0.27832,3590.3,3590.0,3.89378404]
[1732903981491,0.27832,3590.3,3590.2,2.3262406]
[1732903982391,0.27832,3590.3,3590.2,2.6045606]
[1732903983402,0.27832,3590.3,3590.2,0.27832]
[1732903984506,0.27831,3590.4,3590.3,0.27831]
[1732903984798,0.27831,3590.3,3590.2,2.6045606]
[1732903985006,0.27831,3590.3,3590.0,3.89378404]
[1732903985007,0.69574,3590.6,3590.1,0.27833]
[1732903985303,0.27833,3590.1,3590.0,6.49835464]
[1732903985498,0.27833,3590.1,3590.0,6.22002464]
[1732903985800,0.27833,3590.1,3590.0,3.2078]
[1732903986395,0.27837,3589.6,3589.5,5.8124106]
[1732903986596,0.27837,3589.6,3589.5,5.5340406]
[1732903989406,4.35128,3589.9,3589.0,3.22416]
[1732903989606,0.27841,3589.1,3589.0,3.22416]
[1732903990001,0.27841,3589.1,3589.0,3.50258]
[1732903990699,0.27841,3589.1,3589.0,3.22416]
[1732903990908,0.27841,3589.1,3589.0,3.50258]
[1732903991605,0.27841,3589.1,3589.0,3.22416]
[1732903993911,0.27841,3589.1,3589.0,3.50258]
[1732903994414,0.2784,3589.2,3589.1,0.2784]
[1732903994617,2.994,3590.1,3589.0,3.22416]
[1732903994618,3.2078,3590.3,3589.4,0.69597]
[1732903994808,0.27831,3590.3,3590.2,2.3262406]
[1732903995016,0.4058,3590.7,3590.2,2.3262406]
[1732903995203,0.27831,3590.4,3590.3,0.70271]
[1732903995404,0.4058,3590.7,3590.5,0.2783]
[1732903995405,0.27829,3590.6,3590.5,0.2783]
[1732903995808,0.27831,3590.4,3590.3,3.6322]
[1732903996005,1.13689,3590.9,3590.3,3.6322]
[1732903996210,0.2783,3590.5,3590.3,3.6322]
[1732903996611,0.27829,3590.6,3590.5,0.2783]
[1732903997020,0.4412,3590.9,3590.3,3.6322]
[1732903997316,0.4412,3590.9,3590.4,0.27831]
[1732903997611,0.4412,3590.9,3590.6,2.3262406]
[1732903997804,0.4412,3590.9,3590.8,3.2078]
[1732903997805,0.27827,3590.9,3590.8,3.2078]
[1732903998109,0.4315,3591.2,3590.8,3.48607]
[1732903998416,0.27825,3591.1,3591.0,2.3262406]
[1732903999212,0.27827,3590.9,3590.8,3.2078]
[1732904001218,0.27827,3590.9,3590.8,3.48608]
[1732904002005,0.27827,3590.9,3590.8,3.2078]
[1732904004106,0.27828,3590.7,3590.6,2.3262406]
[1732904004510,0.2783,3590.5,3590.4,3.2078]
[1732904009916,0.2783,3590.5,3590.2,0.27848868]
[1732904009917,0.27834,3590.0,3589.9,3.2078]
[1732904011516,10.08696109,3590.0,3589.9,3.2078]
[1732904012023,0.27834,3590.0,3589.9,3.2078]
[1732904012315,10.08696109,3590.0,3589.9,3.2078]
[1732904012918,3.2078,3590.0,3589.3,3.2078]
[1732904013114,0.27838,3589.4,3589.3,3.2078]
[1732904013313,0.27839,3589.3,3589.2,2.3262406]
[1732904013713,9.82752226,3589.4,3588.9,3.2078]
[1732904013924,0.27842,3589.0,3588.9,3.48622]
[1732904014325,10.52327226,3590.5,3588.9,8.2078]
[1732904014580,0.27837,3589.7,3589.6,0.27836]
[1732904014817,0.27837,3589.6,3589.5,0.68658]
[1732904015020,0.27837,3589.7,3589.6,0.27836]
[1732904015919,0.4472,3590.2,3589.8,0.27835]
[1732904016127,3.90356,3590.5,3589.9,2.3262406]
[1732904016321,0.27833,3590.1,3590.0,3.6223]
[1732904016623,0.27833,3590.1,3590.0,3.48614]
[1732904017324,0.856,3590.8,3590.0,3.48614]
[1732904017325,0.856,3590.8,3590.3,0.27831]
[1732904017516,0.856,3590.8,3590.3,2.3262406]
[1732904017716,0.2783,3590.5,3590.4,3.4861]
[1732904017920,0.2783,3590.5,3590.4,3.6373]
[1732904019422,0.2783,3590.5,3590.4,3.2078]
[1732904019924,0.2783,3590.5,3590.4,3.48611]
[1732904020121,0.2783,3590.5,3590.4,3.2078]
[1732904021028,0.27833,3590.3,3589.9,3.2078]
[1732904021222,0.27833,3590.3,3590.2,0.27832]
[1732904022028,0.856,3590.8,3589.9,3.2078]
[1732904022218,0.27834,3590.0,3589.9,3.48614]
[1732904023022,0.27833,3590.1,3590.0,0.27833]
[1732904024224,0.69577,3590.5,3589.9,3.2078]
[1732904024524,0.27834,3590.0,3589.9,3.48614]
[1732904025025,0.27834,3590.0,3589.9,3.2078]
[1732904025219,0.27834,3590.0,3589.9,3.48615]
[1732904025517,0.27834,3590.0,3589.9,3.2078]
[1732904027525,0.27834,3590.0,3589.9,3.48615]
[1732904029227,0.27834,3590.0,3589.9,3.2078]
[1732904029814,0.27834,3590.0,3589.9,3.48615]
[1732904030019,0.27834,3590.0,3589.9,3.2078]
[1732904031427,0.4437,3590.1,3589.9,3.2078]
[1732904031428,0.27833,3590.2,3590.1,0.27832]
[1732904031623,9.82752226,3590.4,3589.9,3.2078]
[1732904031822,0.27834,3590.0,3589.9,3.48614]
[1732904032222,0.27834,3590.0,3589.9,3.2078]
[1732904032623,0.27834,3590.0,3589.9,3.48615]
[1732904034735,0.27834,3590.0,3589.9,3.2078]
[1732904035523,0.27834,3590.0,3589.9,3.48615]
[1732904037325,0.27834,3590.1,3590.0,0.27833]
[1732904038426,0.27833,3590.2,3590.1,0.27832]
[1732904038631,0.27832,3590.3,3590.2,0.27832]
[1732904039027,0.2783,3590.6,3590.5,0.27829]
[1732904039229,0.2783,3590.5,3590.4,3.4861]
[1732904039927,0.2783,3590.5,3590.4,3.2078]
[1732904047428,0.27833,3590.1,3590.0,5.5340406]
[1732904048341,0.27833,3590.1,3590.0,5.8123806]
[1732904048634,0.27833,3590.2,3590.1,0.27832]
[1732904049038,0.27833,3590.2,3590.0,5.5340406]
[1732904049039,0.4481,3590.4,3590.0,5.5340406]
[1732904049234,0.27833,3590.1,3590.0,5.5340406]
[1732904050532,0.2783,3590.5,3590.4,0.2783]
[1732904050738,0.2783,3590.5,3590.4,5.5340406]
[1732904051538,0.2783,3590.5,3590.4,5.8123506]
[1732904051842,10.12563332,3590.5,3590.4,5.8123506]
[1732904053039,10.12563332,3590.5,3590.4,5.5340406]
[1732904053741,10.12563332,3590.5,3590.4,6.2481506]
[1732904055450,9.84733332,3590.5,3590.4,6.2481506]
[1732904055643,10.12563332,3590.5,3590.4,6.2481506]
[1732904056640,9.84733332,3590.5,3590.4,6.2481506]
[1732904056847,9.84733332,3590.6,3590.4,5.9698406]
[1732904057141,9.84733332,3590.7,3590.5,0.4439]
[1732904057445,9.84733332,3590.7,3590.6,0.27829]
[1732904059144,0.27826,3591.1,3591.0,0.27826]
[1732904059337,1.3078,3591.5,3591.0,5.5340406]
[1732904059338,0.8753,3591.5,3591.0,5.5340406]
[1732904059640,0.27822,3591.6,3591.5,0.27822]
[1732904059842,0.4207,3591.8,3591.4,5.8122606]
[1732904060039,0.27822,3591.6,3591.5,0.27822]
[1732904060540,0.6989,3591.8,3591.5,0.27822]
[1732904060738,0.6989,3591.8,3591.7,0.27821]
[1732904060739,0.2782,3591.8,3591.7,0.27821]
[1732904060944,0.27819,3591.9,3591.4,5.5340406]
[1732904061150,0.27819,3592.0,3591.8,5.5340406]
[1732904061444,0.27819,3592.0,3591.8,5.8122306]
[1732904061836,0.27818,3592.1,3591.9,0.27819]
[1732904062041,0.27818,3592.1,3592.0,0.27818]
[1732904062243,0.27817,3592.3,3592.1,0.27817]